Workbook

Sheet Úvodní list
B2: Navrhování a rozhodování o typu protihlukových stěn u dopravních staveb
B7: Příloha č.3 - Tabulky pro výpočet návrhových vah kritérií
B11: Tato elektronická příloha mé bakalářské práce ukazuje postup výpočtu použitého k tvorbě vah kritérií pro účely kapitoly 5.7 - Návrhy vah. V tabulkách je použita Metfesselova metoda alokace k určení vzájemné důležitosti kritérií výběru protihlukových stěn z pohledu každého účastníka projektu. Tabulky jsou připravené na jednoduchou úpravu a tím možnou personalizaci výpočtu na bází realit konkrétního projektu. Bližší popis fungování těchto tabulek lze nalézt v Příloze č.1, list Metfesselova alokace.
B23: Obsah:
B24: Strom kritérií
B25: Rozhodování investora
B26: Rozhodování projektanta
B27: Rozhodování dodavatele

Sheet Strom kritérií
B2: Kritéria pro rozhodování o typu protihlukové stěny | N2: <- zpět na Úvodní list
B8: Kritéria technická | H8: Kritéria ekonomická
B12: Akustická kritéria | H12: Montážní kritéria
B15: Zvuková pohltivost | H15: Hmotnost dílce
B17: Vzduchová neprůzvučnost | H17: Obtížnost montáže
B20: Bezpečnostní kritéria | H20: Záruková kritéria
B23: Max. kolmé zatížení | H23: Délka záruky
B25: Max. dynamické zatížení
H26: Cenová kritéria
B27: Ostatní bezpečnostní hlediska
H29: Náklady na výstavbu
B30: Rozměrová kritéria
B33: Mezní rozměry stěny
B35: Počet rozměrových variant
B38: Kritéria udržitelnosti | H38: Kritéria estetiky
B42: Trvanlivostní kritéria | H42: Estetická kritéria
B45: Akustická trvanlivost | H45: Vhodnost do prostředí
B47: Celková životnost
B50: Kritéria životního prostředí
B53: Hlediska životního prostředí

Sheet Rozhodování investora
B2: Váhy kritérií pro rozhodování investora
B6: Skupina | C6: Bodové hodnocení | D6: Normovaná váha | F6: <- zpět na Úvodní list
B7: Kritéria technická | C7: 5 | D7: =Tabulka2421252[[#This Row],[Bodové hodnocení]]/SUM(C:C) -> 0.1666666667
B8: Kritéria ekonomická | C8: 8 | D8: =Tabulka2421252[[#This Row],[Bodové hodnocení]]/SUM(C:C) -> 0.2666666667
B9: Kritéria udržitelnosti | C9: 9 | D9: =Tabulka2421252[[#This Row],[Bodové hodnocení]]/SUM(C:C) -> 0.3
B10: Kritéria estetiky | C10: 8 | D10: =Tabulka2421252[[#This Row],[Bodové hodnocení]]/SUM(C:C) -> 0.2666666667
B16: Kritéria technická | C16: Podskupina | D16: Bodové hodnocení | E16: Normovaná váha | F16: Výsledková váha | H16: Akustická kritéria | I16: Kritéria | J16: Bodové hodnocení | K16: Normovaná váha | L16: Výsledková váha
C17: Akustická | D17: 2 | E17: =Tabulka24922263[[#This Row],[Bodové hodnocení]]/SUM($D$17:$D$22) -> 0.3333333333 | F17: =Tabulka24922263[[#This Row],[Normovaná váha]]*$D$7 -> 0.05555555556 | I17: Pohltivost | J17: 1 | K17: =J17/SUM($J$17:$J$19) -> 0.5 | L17: =K17*$F$17 -> 0.02777777778
C18: Bezpečnostní | D18: 3 | E18: =Tabulka24922263[[#This Row],[Bodové hodnocení]]/SUM($D$17:$D$22) -> 0.5 | F18: =Tabulka24922263[[#This Row],[Normovaná váha]]*$D$7 -> 0.08333333333 | I18: Neprůzvučnost | J18: 1 | K18: =J18/SUM($J$17:$J$19) -> 0.5 | L18: =K18*$F$17 -> 0.02777777778
C19: Rozměrová | D19: 1 | E19: =Tabulka24922263[[#This Row],[Bodové hodnocení]]/SUM($D$17:$D$22) -> 0.1666666667 | F19: =Tabulka24922263[[#This Row],[Normovaná váha]]*$D$7 -> 0.02777777778
H21: Bezpečnostní kritéria | I21: Kritéria | J21: Bodové hodnocení | K21: Normovaná váha | L21: Výsledková váha
I22: Kolmé zatížení | J22: 1 | K22: =J22/SUM($J$22:$J$24) -> 0.3333333333 | L22: =K22*$F$18 -> 0.02777777778
I23: Dynamické zatížení | J23: 1 | K23: =J23/SUM($J$22:$J$24) -> 0.3333333333 | L23: =K23*$F$18 -> 0.02777777778
I24: Ostatní bezp. hlediska | J24: 1 | K24: 0.3333333333 | L24: 0.02777777778
B26: Kritéria ekonomická | C26: Podskupina | D26: Bodové hodnocení | E26: Normovaná váha | F26: Výsledková váha | H26: Rozměrová kritéria | I26: Kritéria | J26: Bodové hodnocení | K26: Normovaná váha | L26: Výsledková váha
C27: Montážní | D27: 1 | E27: =Tabulka2491023274[[#This Row],[Bodové hodnocení]]/SUM($D$27:$D$32) -> 0.25 | F27: =Tabulka2491023274[[#This Row],[Normovaná váha]]*$D$8 -> 0.06666666667 | I27: Mezní rozměry | J27: 1 | K27: =J27/SUM($J$27:$J$29) -> 0.3333333333 | L27: =K27*$F$19 -> 0.009259259259
C28: Záruková | D28: 1 | E28: =Tabulka2491023274[[#This Row],[Bodové hodnocení]]/SUM($D$27:$D$32) -> 0.25 | F28: =Tabulka2491023274[[#This Row],[Normovaná váha]]*$D$8 -> 0.06666666667 | I28: Počet variant | J28: 2 | K28: =J28/SUM($J$27:$J$29) -> 0.6666666667 | L28: =K28*$F$19 -> 0.01851851852
C29: Cenová | D29: 2 | E29: =Tabulka2491023274[[#This Row],[Bodové hodnocení]]/SUM($D$27:$D$32) -> 0.5 | F29: =Tabulka2491023274[[#This Row],[Normovaná váha]]*$D$8 -> 0.1333333333
H31: Montážní kritéria | I31: Kritéria | J31: Bodové hodnocení | K31: Normovaná váha | L31: Výsledková váha
I32: Hmotnost | J32: 1 | K32: =J32/SUM($J$32:$J$34) -> 0.5 | L32: =K32*$F$27 -> 0.03333333333
I33: Obtížnost | J33: 1 | K33: =J33/SUM($J$32:$J$34) -> 0.5 | L33: =K33*$F$27 -> 0.03333333333
B36: Kritéria udržitelnosti | C36: Podskupina | D36: Bodové hodnocení | E36: Normovaná váha | F36: Výsledková váha | H36: Záruková kritéria | I36: Kritéria | J36: Bodové hodnocení | K36: Normovaná váha | L36: Výsledková váha
C37: Trvanlivostní | D37: 2 | E37: =Tabulka2491124285[[#This Row],[Bodové hodnocení]]/SUM($D$37:$D$42) -> 0.5 | F37: =Tabulka2491124285[[#This Row],[Normovaná váha]]*$D$9 -> 0.15 | I37: Délka záruky | J37: 1 | K37: =J37/SUM($J$37:$J$39) -> 1 | L37: =K37*$F$28 -> 0.06666666667
C38: Životní prostředí | D38: 2 | E38: =Tabulka2491124285[[#This Row],[Bodové hodnocení]]/SUM($D$37:$D$42) -> 0.5 | F38: =Tabulka2491124285[[#This Row],[Normovaná váha]]*$D$9 -> 0.15
H41: Cenová kritéria | I41: Kritéria | J41: Bodové hodnocení | K41: Normovaná váha | L41: Výsledková váha
I42: Náklady na výstavbu | J42: 1 | K42: =J42/SUM($J$42:$J$44) -> 1 | L42: =K42*$F$29 -> 0.1333333333
B46: Kritéria estetiky | C46: Kritérium | D46: Bodové hodnocení | E46: Normovaná váha | F46: Výsledková váha | H46: Trvanlivostní kritéria | I46: Kritéria | J46: Bodové hodnocení | K46: Normovaná váha | L46: Výsledková váha
C47: Estetická | D47: 1 | E47: =Tabulka249112428510[[#This Row],[Bodové hodnocení]]/SUM($D$46:$D$52) -> 1 | F47: =Tabulka249112428510[[#This Row],[Normovaná váha]]*$D$9 -> 0.3 | I47: Akustická životnost | J47: 1 | K47: =J47/SUM($J$47:$J$49) -> 0.5 | L47: =K47*$F$37 -> 0.075
I48: Celková životnost | J48: 1 | K48: =J48/SUM($J$47:$J$49) -> 0.5 | L48: =K48*$F$37 -> 0.075
H51: Kritéria životního prostředí | I51: Kritéria | J51: Bodové hodnocení | K51: Normovaná váha | L51: Výsledková váha
I52: Hlediska živ. prostř. | J52: 1 | K52: =J52/SUM($J$52:$J$54) -> 1 | L52: =K52*$F$38 -> 0.15
H56: Estetická kritéria | I56: Kritéria | J56: Bodové hodnocení | K56: Normovaná váha | L56: Výsledková váha
I57: Vhodnost do prostředí | J57: 1 | K57: =J57/SUM($J$57:$J$59) -> 1 | L57: =K57*$F$47 -> 0.3
C64: Kritérium | E64: Váha
C65: Zvuková pohltivost | E65: =L17 -> 0.02777777778
C66: Vzduchová neprůzvučnost | E66: =L18 -> 0.02777777778
C67: Maximální kolmé zatížení | E67: =L22 -> 0.02777777778
C68: Maximální dynamické zatížení | E68: =L23 -> 0.02777777778
C69: Ostatní bezpečnostní hlediska | E69: =L24 -> 0.02777777778
C70: Mezní rozměry stěny | E70: =L27 -> 0.009259259259
C71: Počet rozměrových variant | E71: =L28 -> 0.01851851852
C72: Hmotnost dílce | E72: =L32 -> 0.03333333333
C73: Obtížnost montáže | E73: =L33 -> 0.03333333333
C74: Délka záruky | E74: =L37 -> 0.06666666667
C75: Náklady na výstavbu | E75: =L42 -> 0.1333333333
C76: Akustická trvanlivost | E76: =L47 -> 0.075
C77: Celková životnost | E77: =L48 -> 0.075
C78: Hlediska životního prostředí | E78: =L52 -> 0.15
C79: Vhodnost do prostředí | E79: =L57 -> 0.3

Sheet Rozhodování projektanta
B2: Váhy kritérií pro rozhodování projektanta
B6: Skupina | C6: Bodové hodnocení | D6: Normovaná váha | F6: <- zpět na Úvodní list
B7: Kritéria technická | C7: 9 | D7: =Tabulka242125211[[#This Row],[Bodové hodnocení]]/SUM(C:C) -> 0.3214285714
B8: Kritéria ekonomická | C8: 5 | D8: =Tabulka242125211[[#This Row],[Bodové hodnocení]]/SUM(C:C) -> 0.1785714286
B9: Kritéria udržitelnosti | C9: 7 | D9: =Tabulka242125211[[#This Row],[Bodové hodnocení]]/SUM(C:C) -> 0.25
B10: Kritéria estetiky | C10: 7 | D10: =Tabulka242125211[[#This Row],[Bodové hodnocení]]/SUM(C:C) -> 0.25
B16: Kritéria technická | C16: Podskupina | D16: Bodové hodnocení | E16: Normovaná váha | F16: Výsledková váha | H16: Akustická kritéria | I16: Kritéria | J16: Bodové hodnocení | K16: Normovaná váha | L16: Výsledková váha
C17: Akustická | D17: 1 | E17: =Tabulka2492226312[[#This Row],[Bodové hodnocení]]/SUM($D$17:$D$22) -> 0.25 | F17: =Tabulka2492226312[[#This Row],[Normovaná váha]]*$D$7 -> 0.08035714286 | I17: Pohltivost | J17: 1 | K17: =J17/SUM($J$17:$J$19) -> 0.5 | L17: =K17*$F$17 -> 0.04017857143
C18: Bezpečnostní | D18: 1 | E18: =Tabulka2492226312[[#This Row],[Bodové hodnocení]]/SUM($D$17:$D$22) -> 0.25 | F18: =Tabulka2492226312[[#This Row],[Normovaná váha]]*$D$7 -> 0.08035714286 | I18: Neprůzvučnost | J18: 1 | K18: =J18/SUM($J$17:$J$19) -> 0.5 | L18: =K18*$F$17 -> 0.04017857143
C19: Rozměrová | D19: 2 | E19: =Tabulka2492226312[[#This Row],[Bodové hodnocení]]/SUM($D$17:$D$22) -> 0.5 | F19: =Tabulka2492226312[[#This Row],[Normovaná váha]]*$D$7 -> 0.1607142857
H21: Bezpečnostní kritéria | I21: Kritéria | J21: Bodové hodnocení | K21: Normovaná váha | L21: Výsledková váha
I22: Kolmé zatížení | J22: 2 | K22: =J22/SUM($J$22:$J$24) -> 0.4 | L22: =K22*$F$18 -> 0.03214285714
I23: Dynamické zatížení | J23: 2 | K23: =J23/SUM($J$22:$J$24) -> 0.4 | L23: =K23*$F$18 -> 0.03214285714
I24: Ostatní bezp. hlediska | J24: 1 | K24: 0.2 | L24: 0.01607142857
B26: Kritéria ekonomická | C26: Podskupina | D26: Bodové hodnocení | E26: Normovaná váha | F26: Výsledková váha | H26: Rozměrová kritéria | I26: Kritéria | J26: Bodové hodnocení | K26: Normovaná váha | L26: Výsledková váha
C27: Montážní | D27: 3 | E27: =Tabulka249102327413[[#This Row],[Bodové hodnocení]]/SUM($D$27:$D$32) -> 0.5 | F27: =Tabulka249102327413[[#This Row],[Normovaná váha]]*$D$8 -> 0.08928571429 | I27: Mezní rozměry | J27: 2 | K27: =J27/SUM($J$27:$J$29) -> 0.6666666667 | L27: =K27*$F$19 -> 0.1071428571
C28: Záruková | D28: 1 | E28: =Tabulka249102327413[[#This Row],[Bodové hodnocení]]/SUM($D$27:$D$32) -> 0.1666666667 | F28: =Tabulka249102327413[[#This Row],[Normovaná váha]]*$D$8 -> 0.02976190476 | I28: Počet variant | J28: 1 | K28: =J28/SUM($J$27:$J$29) -> 0.3333333333 | L28: =K28*$F$19 -> 0.05357142857
C29: Cenová | D29: 2 | E29: =Tabulka249102327413[[#This Row],[Bodové hodnocení]]/SUM($D$27:$D$32) -> 0.3333333333 | F29: =Tabulka249102327413[[#This Row],[Normovaná váha]]*$D$8 -> 0.05952380952
H31: Montážní kritéria | I31: Kritéria | J31: Bodové hodnocení | K31: Normovaná váha | L31: Výsledková váha
I32: Hmotnost | J32: 1 | K32: =J32/SUM($J$32:$J$34) -> 0.3333333333 | L32: =K32*$F$27 -> 0.02976190476
I33: Obtížnost | J33: 2 | K33: =J33/SUM($J$32:$J$34) -> 0.6666666667 | L33: =K33*$F$27 -> 0.05952380952
B36: Kritéria udržitelnosti | C36: Podskupina | D36: Bodové hodnocení | E36: Normovaná váha | F36: Výsledková váha | H36: Záruková kritéria | I36: Kritéria | J36: Bodové hodnocení | K36: Normovaná váha | L36: Výsledková váha
C37: Trvanlivostní | D37: 1 | E37: =Tabulka249112428514[[#This Row],[Bodové hodnocení]]/SUM($D$37:$D$42) -> 0.3333333333 | F37: =Tabulka249112428514[[#This Row],[Normovaná váha]]*$D$9 -> 0.08333333333 | I37: Délka záruky | J37: 1 | K37: =J37/SUM($J$37:$J$39) -> 1 | L37: =K37*$F$28 -> 0.02976190476
C38: Životní prostředí | D38: 2 | E38: =Tabulka249112428514[[#This Row],[Bodové hodnocení]]/SUM($D$37:$D$42) -> 0.6666666667 | F38: =Tabulka249112428514[[#This Row],[Normovaná váha]]*$D$9 -> 0.1666666667
H41: Cenová kritéria | I41: Kritéria | J41: Bodové hodnocení | K41: Normovaná váha | L41: Výsledková váha
I42: Náklady na výstavbu | J42: 1 | K42: =J42/SUM($J$42:$J$44) -> 1 | L42: =K42*$F$29 -> 0.05952380952
B46: Kritéria estetiky | C46: Kritérium | D46: Bodové hodnocení | E46: Normovaná váha | F46: Výsledková váha | H46: Trvanlivostní kritéria | I46: Kritéria | J46: Bodové hodnocení | K46: Normovaná váha | L46: Výsledková váha
C47: Estetická | D47: 1 | E47: =Tabulka24911242851015[[#This Row],[Bodové hodnocení]]/SUM($D$46:$D$52) -> 1 | F47: =Tabulka24911242851015[[#This Row],[Normovaná váha]]*$D$9 -> 0.25 | I47: Akustická životnost | J47: 1 | K47: =J47/SUM($J$47:$J$49) -> 0.5 | L47: =K47*$F$37 -> 0.04166666667
I48: Celková životnost | J48: 1 | K48: =J48/SUM($J$47:$J$49) -> 0.5 | L48: =K48*$F$37 -> 0.04166666667
H51: Kritéria životního prostředí | I51: Kritéria | J51: Bodové hodnocení | K51: Normovaná váha | L51: Výsledková váha
I52: Hlediska živ. prostř. | J52: 1 | K52: =J52/SUM($J$52:$J$54) -> 1 | L52: =K52*$F$38 -> 0.1666666667
H56: Estetická kritéria | I56: Kritéria | J56: Bodové hodnocení | K56: Normovaná váha | L56: Výsledková váha
I57: Vhodnost do prostředí | J57: 1 | K57: =J57/SUM($J$57:$J$59) -> 1 | L57: =K57*$F$47 -> 0.25
C64: Kritérium | E64: Váha
C65: Zvuková pohltivost | E65: =L17 -> 0.04017857143
C66: Vzduchová neprůzvučnost | E66: =L18 -> 0.04017857143
C67: Maximální kolmé zatížení | E67: =L22 -> 0.03214285714
C68: Maximální dynamické zatížení | E68: =L23 -> 0.03214285714
C69: Ostatní bezpečnostní hlediska | E69: =L24 -> 0.01607142857
C70: Mezní rozměry stěny | E70: =L27 -> 0.1071428571
C71: Počet rozměrových variant | E71: =L28 -> 0.05357142857
C72: Hmotnost dílce | E72: =L32 -> 0.02976190476
C73: Obtížnost montáže | E73: =L33 -> 0.05952380952
C74: Délka záruky | E74: =L37 -> 0.02976190476
C75: Náklady na výstavbu | E75: =L42 -> 0.05952380952
C76: Akustická trvanlivost | E76: =L47 -> 0.04166666667
C77: Celková životnost | E77: =L48 -> 0.04166666667
C78: Hlediska životního prostředí | E78: =L52 -> 0.1666666667
C79: Vhodnost do prostředí | E79: =L57 -> 0.25

Sheet Rozhodování dodavatele
B2: Váhy kritérií pro rozhodování projektanta
B6: Skupina | C6: Bodové hodnocení | D6: Normovaná váha | F6: <- zpět na Úvodní list
B7: Kritéria technická | C7: 6 | D7: =Tabulka24212521116[[#This Row],[Bodové hodnocení]]/SUM(C:C) -> 0.2608695652
B8: Kritéria ekonomická | C8: 10 | D8: =Tabulka24212521116[[#This Row],[Bodové hodnocení]]/SUM(C:C) -> 0.4347826087
B9: Kritéria udržitelnosti | C9: 3 | D9: =Tabulka24212521116[[#This Row],[Bodové hodnocení]]/SUM(C:C) -> 0.1304347826
B10: Kritéria estetiky | C10: 4 | D10: =Tabulka24212521116[[#This Row],[Bodové hodnocení]]/SUM(C:C) -> 0.1739130435
B16: Kritéria technická | C16: Podskupina | D16: Bodové hodnocení | E16: Normovaná váha | F16: Výsledková váha | H16: Akustická kritéria | I16: Kritéria | J16: Bodové hodnocení | K16: Normovaná váha | L16: Výsledková váha
C17: Akustická | D17: 2 | E17: =Tabulka249222631217[[#This Row],[Bodové hodnocení]]/SUM($D$17:$D$22) -> 0.3333333333 | F17: =Tabulka249222631217[[#This Row],[Normovaná váha]]*$D$7 -> 0.08695652174 | I17: Pohltivost | J17: 1 | K17: =J17/SUM($J$17:$J$19) -> 0.5 | L17: =K17*$F$17 -> 0.04347826087
C18: Bezpečnostní | D18: 1 | E18: =Tabulka249222631217[[#This Row],[Bodové hodnocení]]/SUM($D$17:$D$22) -> 0.1666666667 | F18: =Tabulka249222631217[[#This Row],[Normovaná váha]]*$D$7 -> 0.04347826087 | I18: Neprůzvučnost | J18: 1 | K18: =J18/SUM($J$17:$J$19) -> 0.5 | L18: =K18*$F$17 -> 0.04347826087
C19: Rozměrová | D19: 3 | E19: =Tabulka249222631217[[#This Row],[Bodové hodnocení]]/SUM($D$17:$D$22) -> 0.5 | F19: =Tabulka249222631217[[#This Row],[Normovaná váha]]*$D$7 -> 0.1304347826
H21: Bezpečnostní kritéria | I21: Kritéria | J21: Bodové hodnocení | K21: Normovaná váha | L21: Výsledková váha
I22: Kolmé zatížení | J22: 1 | K22: =J22/SUM($J$22:$J$24) -> 0.3333333333 | L22: =K22*$F$18 -> 0.01449275362
I23: Dynamické zatížení | J23: 1 | K23: =J23/SUM($J$22:$J$24) -> 0.3333333333 | L23: =K23*$F$18 -> 0.01449275362
I24: Ostatní bezp. hlediska | J24: 1 | K24: 0.3333333333 | L24: 0.01449275362
B26: Kritéria ekonomická | C26: Podskupina | D26: Bodové hodnocení | E26: Normovaná váha | F26: Výsledková váha | H26: Rozměrová kritéria | I26: Kritéria | J26: Bodové hodnocení | K26: Normovaná váha | L26: Výsledková váha
C27: Montážní | D27: 2 | E27: =Tabulka24910232741318[[#This Row],[Bodové hodnocení]]/SUM($D$27:$D$32) -> 0.3333333333 | F27: =Tabulka24910232741318[[#This Row],[Normovaná váha]]*$D$8 -> 0.1449275362 | I27: Mezní rozměry | J27: 1 | K27: =J27/SUM($J$27:$J$29) -> 0.3333333333 | L27: =K27*$F$19 -> 0.04347826087
C28: Záruková | D28: 1 | E28: =Tabulka24910232741318[[#This Row],[Bodové hodnocení]]/SUM($D$27:$D$32) -> 0.1666666667 | F28: =Tabulka24910232741318[[#This Row],[Normovaná váha]]*$D$8 -> 0.07246376812 | I28: Počet variant | J28: 2 | K28: =J28/SUM($J$27:$J$29) -> 0.6666666667 | L28: =K28*$F$19 -> 0.08695652174
C29: Cenová | D29: 3 | E29: =Tabulka24910232741318[[#This Row],[Bodové hodnocení]]/SUM($D$27:$D$32) -> 0.5 | F29: =Tabulka24910232741318[[#This Row],[Normovaná váha]]*$D$8 -> 0.2173913043
H31: Montážní kritéria | I31: Kritéria | J31: Bodové hodnocení | K31: Normovaná váha | L31: Výsledková váha
I32: Hmotnost | J32: 1 | K32: =J32/SUM($J$32:$J$34) -> 0.3333333333 | L32: =K32*$F$27 -> 0.04830917874
I33: Obtížnost | J33: 2 | K33: =J33/SUM($J$32:$J$34) -> 0.6666666667 | L33: =K33*$F$27 -> 0.09661835749
B36: Kritéria udržitelnosti | C36: Podskupina | D36: Bodové hodnocení | E36: Normovaná váha | F36: Výsledková váha | H36: Záruková kritéria | I36: Kritéria | J36: Bodové hodnocení | K36: Normovaná váha | L36: Výsledková váha
C37: Trvanlivostní | D37: 1 | E37: =Tabulka24911242851419[[#This Row],[Bodové hodnocení]]/SUM($D$37:$D$42) -> 0.5 | F37: =Tabulka24911242851419[[#This Row],[Normovaná váha]]*$D$9 -> 0.0652173913 | I37: Délka záruky | J37: 1 | K37: =J37/SUM($J$37:$J$39) -> 1 | L37: =K37*$F$28 -> 0.07246376812
C38: Životní prostředí | D38: 1 | E38: =Tabulka24911242851419[[#This Row],[Bodové hodnocení]]/SUM($D$37:$D$42) -> 0.5 | F38: =Tabulka24911242851419[[#This Row],[Normovaná váha]]*$D$9 -> 0.0652173913
H41: Cenová kritéria | I41: Kritéria | J41: Bodové hodnocení | K41: Normovaná váha | L41: Výsledková váha
I42: Náklady na výstavbu | J42: 1 | K42: =J42/SUM($J$42:$J$44) -> 1 | L42: =K42*$F$29 -> 0.2173913043
B46: Kritéria estetiky | C46: Kritérium | D46: Bodové hodnocení | E46: Normovaná váha | F46: Výsledková váha | H46: Trvanlivostní kritéria | I46: Kritéria | J46: Bodové hodnocení | K46: Normovaná váha | L46: Výsledková váha
C47: Estetická | D47: 1 | E47: =Tabulka2491124285101520[[#This Row],[Bodové hodnocení]]/SUM($D$46:$D$52) -> 1 | F47: =Tabulka2491124285101520[[#This Row],[Normovaná váha]]*$D$9 -> 0.1304347826 | I47: Akustická životnost | J47: 1 | K47: =J47/SUM($J$47:$J$49) -> 0.5 | L47: =K47*$F$37 -> 0.03260869565
I48: Celková životnost | J48: 1 | K48: =J48/SUM($J$47:$J$49) -> 0.5 | L48: =K48*$F$37 -> 0.03260869565
H51: Kritéria životního prostředí | I51: Kritéria | J51: Bodové hodnocení | K51: Normovaná váha | L51: Výsledková váha
I52: Hlediska živ. prostř. | J52: 1 | K52: =J52/SUM($J$52:$J$54) -> 1 | L52: =K52*$F$38 -> 0.0652173913
H56: Estetická kritéria | I56: Kritéria | J56: Bodové hodnocení | K56: Normovaná váha | L56: Výsledková váha
I57: Vhodnost do prostředí | J57: 1 | K57: =J57/SUM($J$57:$J$59) -> 1 | L57: =K57*$F$47 -> 0.1304347826
C64: Kritérium | E64: Váha
C65: Zvuková pohltivost | E65: =L17 -> 0.04347826087
C66: Vzduchová neprůzvučnost | E66: =L18 -> 0.04347826087
C67: Maximální kolmé zatížení | E67: =L22 -> 0.01449275362
C68: Maximální dynamické zatížení | E68: =L23 -> 0.01449275362
C69: Ostatní bezpečnostní hlediska | E69: =L24 -> 0.01449275362
C70: Mezní rozměry stěny | E70: =L27 -> 0.04347826087
C71: Počet rozměrových variant | E71: =L28 -> 0.08695652174
C72: Hmotnost dílce | E72: =L32 -> 0.04830917874
C73: Obtížnost montáže | E73: =L33 -> 0.09661835749
C74: Délka záruky | E74: =L37 -> 0.07246376812
C75: Náklady na výstavbu | E75: =L42 -> 0.2173913043
C76: Akustická trvanlivost | E76: =L47 -> 0.03260869565
C77: Celková životnost | E77: =L48 -> 0.03260869565
C78: Hlediska životního prostředí | E78: =L52 -> 0.0652173913
C79: Vhodnost do prostředí | E79: =L57 -> 0.1304347826
